bitfinex-derivatives/quotes_BTCF0:USTF0_20241104
["timestamp","ask_amount","ask_price","bid_price","bid_amount"]
[1730732419685,0.073086,68451.0,68449.0,0.073087]
[1730732419889,0.073086,68451.0,68444.0,0.3608]
[1730732419890,0.001,68461.0,68444.0,0.3608]
[1730732420187,0.001,68461.0,68450.0,0.3608]
[1730732420390,0.001,68461.0,68460.0,0.073075]
[1730732420590,0.3608,68468.0,68457.0,0.3608]
[1730732420794,0.12624401,68467.0,68466.0,0.073069]
[1730732421108,0.073072,68463.0,68462.0,0.073072]
[1730732421407,0.073072,68463.0,68454.0,0.0338]
[1730732421408,0.3608,68468.0,68454.0,0.0338]
[1730732421592,0.3608,68468.0,68446.0,0.21062897]
[1730732421593,0.3608,68459.0,68458.0,0.073077]
[1730732421798,0.073072,68464.0,68463.0,0.073071]
[1730732422192,0.12614977,68464.0,68463.0,0.073071]
[1730732422598,0.05307777,68464.0,68463.0,0.073071]
[1730732422988,0.001,68464.0,68463.0,0.074072]
[1730732423397,0.001,68464.0,68463.0,0.001]
[1730732423595,0.074071,68464.0,68463.0,0.001]
[1730732424805,0.512271,68464.0,68463.0,0.001]
[1730732424996,0.512271,68464.0,68463.0,0.002]
[1730732424997,0.56757772,68464.0,68463.0,0.002]
[1730732425401,0.514271,68464.0,68463.0,0.002]
[1730732425603,0.07309,68447.0,68445.0,0.07309]
[1730732425806,0.073084,68452.0,68442.0,0.073094]
[1730732426016,0.3608,68457.0,68446.0,0.073089]
[1730732426299,0.3608,68457.0,68441.0,0.1512]
[1730732426300,0.3608,68451.0,68445.0,0.073091]
[1730732426504,0.073089,68447.0,68445.0,0.073091]
[1730732426700,0.07309,68446.0,68445.0,0.073091]
[1730732427003,0.3608,68451.0,68436.0,0.1842]
[1730732427308,0.073089,68447.0,68446.0,0.07309]
[1730732427602,0.075089,68447.0,68446.0,0.07309]
[1730732428109,0.07309,68446.0,68445.0,0.001]
[1730732428404,0.073097,68439.0,68438.0,0.3618]
[1730732429001,0.073097,68439.0,68438.0,0.001]
[1730732429206,0.3608,68444.0,68443.0,0.073093]
[1730732429397,0.003,68447.0,68446.0,0.07309]
[1730732430398,0.003,68447.0,68443.0,0.073093]
[1730732430602,0.3815769,68451.0,68440.0,0.3608]
[1730732430804,0.073087,68450.0,68447.0,0.073089]
[1730732431104,0.073087,68450.0,68448.0,0.073087]
[1730732431407,0.0337,68462.0,68440.0,0.3608]
[1730732431408,0.073079,68457.0,68446.0,0.3608]
[1730732431599,0.073079,68457.0,68456.0,0.073079]
[1730732432302,0.38107735,68459.0,68447.0,0.1051]
[1730732432612,0.002,68450.0,68449.0,0.073087]
[1730732433711,0.073087,68449.0,68448.0,0.0446943]
[1730732433906,0.073087,68449.0,68447.0,0.1146943]
[1730732434207,0.073088,68448.0,68447.0,0.071]
[1730732434399,0.003,68457.0,68446.0,0.3608]
[1730732434597,0.073089,68448.0,68446.0,0.3608]
[1730732434910,0.002,68450.0,68449.0,0.073087]
[1730732435500,0.434877,68459.0,68449.0,0.073087]
[1730732435501,0.434877,68459.0,68449.0,0.2134882]
[1730732435700,0.075079,68457.0,68455.0,0.07308]
[1730732435903,0.075079,68457.0,68450.0,0.073086]
[1730732436111,0.075079,68457.0,68449.0,0.2134882]
[1730732436309,0.002,68457.0,68449.0,0.2134882]
[1730732436512,0.002,68457.0,68456.0,0.073079]
[1730732436707,0.002,68457.0,68449.0,0.1404012]
[1730732436902,0.002,68457.0,68454.0,0.073081]
[1730732437099,0.002,68457.0,68448.0,0.073088]
[1730732437100,0.073082,68454.0,68448.0,0.073088]
[1730732437311,0.3608,68459.0,68447.0,0.001]
[1730732437312,0.1404012,68451.0,68447.0,0.001]
[1730732437608,0.002,68450.0,68449.0,0.073087]
[1730732437999,0.002,68450.0,68449.0,0.074087]
[1730732438207,0.001,68459.0,68458.0,0.073077]
[1730732438598,0.073081,68455.0,68452.0,0.3608]
[1730732438802,0.073081,68455.0,68454.0,0.073081]
[1730732439001,0.14259343,68461.0,68451.0,0.073084]
[1730732439212,0.1404012,68456.0,68448.0,0.001]
[1730732439410,0.073087,68449.0,68448.0,0.074087]
[1730732439805,0.1404012,68456.0,68448.0,0.001]
[1730732440013,0.073081,68455.0,68441.0,0.15283746]
[1730732440204,0.002,68450.0,68449.0,0.074087]
[1730732440508,0.002,68450.0,68449.0,0.073087]
[1730732440705,0.075086,68450.0,68449.0,0.073087]
[1730732441105,0.38146748,68458.0,68445.0,0.3608]
[1730732441307,0.05321334,68457.0,68451.0,0.3608]
[1730732441613,0.00319223,68461.0,68460.0,0.073075]
[1730732442017,0.05531588,68461.0,68460.0,0.073075]
[1730732442407,0.00219223,68461.0,68460.0,0.073075]
[1730732442813,0.00219223,68461.0,68460.0,0.433875]
[1730732443318,0.07306,68475.0,68472.0,0.073061]
[1730732443620,0.073058,68477.0,68467.0,0.073067]
[1730732443912,0.073045,68488.0,68466.0,0.5012012]
[1730732443913,0.073062,68473.0,68471.0,0.073063]
[1730732444501,0.073062,68473.0,68472.0,0.073062]
[1730732444705,0.073062,68473.0,68466.0,0.3608]
[1730732444706,0.073065,68470.0,68469.0,0.073065]
[1730732444911,0.001,68477.0,68476.0,0.073058]
[1730732445118,0.12733267,68477.0,68476.0,0.073058]
[1730732445322,0.05427567,68477.0,68476.0,0.073058]
[1730732445514,0.05342965,68477.0,68476.0,0.073058]
[1730732445815,0.3608,68483.0,68482.0,0.073052]
[1730732446002,0.05346252,68483.0,68477.0,0.0352]
[1730732446208,0.00219187,68484.0,68479.0,0.3608]
[1730732446209,0.07524187,68484.0,68479.0,0.3608]
[1730732446510,0.073051,68483.0,68479.0,0.3608]
[1730732446706,0.00219187,68484.0,68483.0,0.07305]
[1730732447810,0.073043,68491.0,68481.0,0.1404012]
[1730732448124,0.073043,68491.0,68479.0,0.3608]
[1730732448125,0.38146973,68496.0,68487.0,0.1404012]
[1730732448310,0.38146973,68496.0,68485.0,0.3608]
[1730732448311,0.3608,68496.0,68495.0,0.073038]
[1730732448815,0.073034,68499.0,68494.0,0.1404012]
[1730732449223,0.1,68500.0,68494.0,0.1404012]
[1730732449518,0.1,68500.0,68497.0,0.3608]
[1730732449721,0.1,68500.0,68499.0,0.073033]
[1730732449911,0.073034,68499.0,68497.0,0.3608]
[1730732450111,0.073034,68498.0,68497.0,0.3608]
[1730732450323,0.1,68500.0,68497.0,0.3608]
[1730732450509,0.1,68500.0,68499.0,0.2134342]
[1730732451631,0.073038,68495.0,68494.0,0.001]
[1730732451923,0.433838,68495.0,68494.0,0.001]
[1730732452110,0.433838,68495.0,68483.0,0.07305]
[1730732452111,0.3608,68495.0,68483.0,0.07305]
[1730732452311,0.3608,68495.0,68478.0,0.5012012]
[1730732452312,0.3971,68494.0,68478.0,0.5019612]
[1730732452634,0.073059,68475.0,68474.0,0.3608]
[1730732453424,0.02036354,68486.0,68474.0,0.7216]
[1730732453718,0.073047,68487.0,68485.0,0.1404012]
[1730732454020,0.073047,68486.0,68482.0,0.073052]
[1730732454220,0.073047,68486.0,68480.0,0.1404012]
[1730732454221,0.073047,68486.0,68483.0,0.07305]
[1730732454713,0.07304,68493.0,68480.0,0.5020412]
[1730732454924,0.0393,68494.0,68480.0,0.5020412]
[1730732455224,0.073048,68486.0,68484.0,0.073049]
[1730732455522,0.073048,68486.0,68485.0,0.073048]
[1730732455523,0.003,68486.0,68485.0,0.073048]
[1730732455927,0.003,68486.0,68483.0,0.001]
[1730732456110,0.0363,68494.0,68480.0,0.3608]
[1730732456111,0.073053,68481.0,68480.0,0.3628]
[1730732456312,0.073053,68481.0,68480.0,0.002]
[1730732456714,0.073053,68481.0,68480.0,0.001]
[1730732457417,0.073049,68485.0,68480.0,0.001]
[1730732457617,0.073049,68485.0,68476.0,0.21052459]
[1730732457821,0.073049,68484.0,68483.0,0.001]
[1730732458411,0.003,68486.0,68485.0,0.073048]
[1730732458624,0.003,68485.0,68484.0,0.0341]
[1730732459020,0.1,68500.0,68485.0,0.073048]
[1730732459225,0.1,68500.0,68484.0,0.0341]
[1730732459226,0.1,68500.0,68489.0,0.3608]
[1730732459427,0.07304,68493.0,68491.0,0.073041]
[1730732459727,0.073034,68499.0,68489.0,0.52704]
[1730732459925,0.073034,68499.0,68496.0,0.073036]
[1730732460126,0.1,68500.0,68499.0,0.073033]
[1730732461621,0.1,68500.0,68499.0,0.433833]
[1730732461828,0.0021906,68512.0,68511.0,0.073021]
[1730732462119,0.0021906,68512.0,68503.0,0.073029]
[1730732462312,0.0021906,68512.0,68503.0,0.239269]
[1730732462725,0.0021906,68512.0,68503.0,0.16624]
[1730732463220,0.0021906,68512.0,68501.0,0.16624]
[1730732463429,0.073021,68511.0,68503.0,0.073029]
[1730732463616,0.073027,68505.0,68503.0,0.073029]
[1730732463818,0.0021906,68512.0,68501.0,0.16624]
[1730732464025,0.073025,68507.0,68505.0,0.073027]
[1730732464216,0.0021906,68512.0,68499.0,0.3628]
[1730732464416,0.073032,68500.0,68499.0,0.001]
[1730732464625,0.073032,68500.0,68491.0,0.3608]
[1730732464932,0.0363,68499.0,68491.0,0.3608]
[1730732465225,0.073041,68492.0,68491.0,0.3608]
[1730732465825,0.0363,68499.0,68485.0,0.0008]
[1730732466126,0.073049,68484.0,68477.0,0.00076]
[1730732466428,0.3608,68495.0,68484.0,0.073049]
[1730732466429,0.073045,68489.0,68484.0,0.073049]
[1730732466618,0.3608,68495.0,68484.0,0.073049]
[1730732466812,0.073049,68484.0,68478.0,0.21052459]
[1730732467031,0.073049,68484.0,68473.0,0.36168]
[1730732467232,0.073049,68484.0,68476.0,0.1662]
[1730732467543,0.05732862,68499.0,68479.0,0.3608]
[1730732467734,0.05732862,68499.0,68486.0,0.3608]
[1730732468026,0.001,68492.0,68490.0,0.073043]
[1730732468228,0.001,68492.0,68486.0,0.3608]
[1730732468525,0.05732862,68499.0,68486.0,0.3608]
[1730732468823,0.05732862,68499.0,68497.0,0.073035]
[1730732468824,0.073034,68499.0,68497.0,0.073035]
[1730732469412,0.05614351,68506.0,68497.0,0.073035]
[1730732469615,0.05614351,68506.0,68494.0,0.073038]
[1730732469826,0.05614351,68506.0,68496.0,0.073036]
[1730732469827,0.073034,68499.0,68496.0,0.073036]
[1730732470018,0.073034,68498.0,68497.0,0.001]
[1730732470323,0.073034,68498.0,68493.0,0.07304]
[1730732470324,0.001,68499.0,68492.0,0.52776]
[1730732470630,0.001,68499.0,68497.0,0.073035]
[1730732471422,0.001,68499.0,68492.0,0.52788]
[1730732471630,0.073046,68487.0,68486.0,0.3608]
[1730732472329,0.073046,68487.0,68486.0,0.433847]
[1730732472629,0.073046,68487.0,68486.0,0.3608]
[1730732473134,0.0339,68497.0,68486.0,0.3638]
[1730732473430,0.3959,68506.0,68486.0,0.57432459]
[1730732473626,0.3959,68506.0,68494.0,0.073039]
[1730732473823,0.3959,68506.0,68486.0,0.57432459]
[1730732474130,0.3959,68506.0,68496.0,0.3608]
[1730732474331,0.073029,68503.0,68500.0,0.073032]
[1730732474528,0.073031,68502.0,68500.0,0.073032]
[1730732474723,0.073031,68502.0,68496.0,0.3608]
[1730732474924,0.02068815,68506.0,68497.0,0.073036]
[1730732475133,0.073029,68503.0,68500.0,0.073032]
[1730732475325,0.073029,68504.0,68496.0,0.3608]
[1730732475524,0.073029,68504.0,68494.0,0.001]
[1730732475731,0.073031,68501.0,68500.0,0.001]
[1730732476233,0.073038,68495.0,68494.0,0.001]
[1730732476835,0.073043,68490.0,68489.0,0.1662]
[1730732477026,0.073043,68490.0,68489.0,0.239244]
[1730732477226,0.002,68503.0,68489.0,0.239244]
[1730732477421,0.073043,68490.0,68489.0,0.1662]
[1730732477622,0.002,68503.0,68494.0,0.001]
[1730732477623,0.075029,68503.0,68494.0,0.001]
[1730732477829,0.002,68503.0,68498.0,0.14033562]
[1730732478025,0.073033,68499.0,68498.0,0.14033562]
[1730732478220,0.073037,68496.0,68495.0,0.3608]
[1730732479632,0.3608,68532.0,68495.0,0.7988]
[1730732479938,0.0342,68522.0,68519.0,0.433812]
[1730732480530,0.073,68531.0,68519.0,0.433812]
[1730732480836,0.073,68530.0,68526.0,0.073005]
[1730732481030,0.073,68530.0,68529.0,0.3608]
[1730732481936,0.3608,68543.0,68529.0,0.3608]
[1730732482142,0.02095026,68543.0,68529.0,0.3608]
[1730732482339,0.433789,68541.0,68530.0,0.1662]
[1730732482638,0.072999,68531.0,68530.0,0.1662]
[1730732482822,0.433789,68541.0,68521.0,0.073009]
[1730732482823,0.072997,68534.0,68521.0,0.073009]
[1730732483022,0.072997,68534.0,68517.0,0.3608]
[1730732483023,0.073004,68527.0,68526.0,0.001]
[1730732483734,0.073007,68525.0,68518.0,0.16616]
[1730732483931,0.072999,68531.0,68530.0,0.001]
[1730732484238,0.072999,68531.0,68530.0,0.002]
[1730732484638,0.072999,68531.0,68530.0,0.001]
[1730732485138,0.072999,68531.0,68526.0,0.001]
[1730732485140,0.073004,68527.0,68526.0,0.001]
[1730732485322,0.57121057,68527.0,68505.0,0.16616]
[1730732485526,0.073015,68517.0,68513.0,0.21041057]
[1730732485722,0.02031497,68533.0,68514.0,0.7216]
[1730732485723,0.00112001,68530.0,68514.0,0.7216]
[1730732485923,0.02031497,68533.0,68525.0,0.073006]
[1730732485924,0.073002,68529.0,68525.0,0.073006]
[1730732486122,0.073002,68529.0,68526.0,0.073005]
[1730732486436,0.073002,68529.0,68522.0,0.3608]
[1730732486437,0.072996,68534.0,68532.0,0.072998]
[1730732486838,0.0354,68541.0,68530.0,0.001]
[1730732487036,0.072995,68536.0,68531.0,0.072998]
[1730732487337,0.05628516,68535.0,68532.0,0.072998]
[1730732487548,0.05628516,68535.0,68528.0,0.3608]
[1730732487741,0.072997,68533.0,68532.0,0.002]
[1730732488835,0.56683693,68533.0,68532.0,0.002]
[1730732489031,0.16384676,68533.0,68532.0,0.002]
[1730732489427,0.16384676,68533.0,68532.0,0.001]
[1730732490134,0.16484676,68533.0,68532.0,0.001]
[1730732490334,0.12984676,68533.0,68532.0,0.002]
[1730732490836,0.56760676,68533.0,68532.0,0.002]
[1730732491042,0.12984676,68533.0,68532.0,0.002]
[1730732491226,0.073997,68533.0,68532.0,0.002]
[1730732491740,0.001,68533.0,68532.0,0.073998]
[1730732491939,0.002,68533.0,68532.0,0.074998]
[1730732492340,0.072978,68551.0,68532.0,0.074998]
[1730732492341,0.07299,68540.0,68532.0,0.002]
[1730732492541,0.07299,68540.0,68536.0,0.3608]
[1730732492739,0.44396342,68555.0,68540.0,0.07299]
[1730732492740,0.072987,68543.0,68540.0,0.07299]
[1730732493044,0.072994,68536.0,68535.0,0.3608]
[1730732493637,0.072992,68538.0,68535.0,0.433795]
[1730732493836,0.0328,68542.0,68535.0,0.433795]
[1730732493837,0.072994,68536.0,68535.0,0.3608]
[1730732494452,0.073994,68536.0,68535.0,0.3618]
[1730732494847,0.833994,68536.0,68535.0,0.3618]
[1730732495035,0.834994,68536.0,68535.0,0.002]
[1730732495547,1.272714,68536.0,68535.0,0.002]
[1730732496546,0.85522888,68536.0,68535.0,0.002]
[1730732496737,1.29294888,68536.0,68535.0,0.002]
[1730732496934,0.073013,68518.0,68517.0,0.0068]
[1730732497134,0.073016,68515.0,68514.0,0.3608]
[1730732497344,0.073013,68519.0,68514.0,0.433817]
[1730732497550,0.033,68522.0,68514.0,0.3608]
[1730732497945,0.073016,68515.0,68514.0,0.3608]
[1730732498243,0.033,68522.0,68507.0,0.17452]
[1730732498452,0.073029,68503.0,68502.0,0.3953]
[1730732499256,0.073026,68507.0,68502.0,0.3953]
[1730732499440,0.073021,68511.0,68506.0,0.073025]
[1730732499638,0.073016,68515.0,68514.0,0.001]
[1730732500365,0.073012,68519.0,68502.0,0.3953]
[1730732500540,0.073023,68509.0,68504.0,0.073028]
[1730732500740,0.05396894,68522.0,68508.0,0.3608]
[1730732500951,0.073013,68518.0,68508.0,0.3608]
[1730732501151,0.02096894,68522.0,68515.0,0.073016]
[1730732501350,0.002,68515.0,68509.0,0.0341]
[1730732501553,0.002,68515.0,68514.0,0.073017]
[1730732502052,0.002,68515.0,68514.0,0.433817]
[1730732502245,0.034,68530.0,68520.0,0.073011]
[1730732502448,0.073007,68524.0,68523.0,0.3608]
[1730732502646,0.21041057,68528.0,68523.0,0.3608]
[1730732502848,0.77605791,68527.0,68506.0,0.3608]
[1730732503053,0.3608,68517.0,68506.0,0.3608]
[1730732503254,0.3608,68517.0,68507.0,0.073025]
[1730732503461,0.073021,68511.0,68507.0,0.073025]
[1730732504154,0.3608,68517.0,68507.0,0.073025]
[1730732504354,0.073022,68510.0,68507.0,0.073025]
[1730732505657,0.003,68517.0,68516.0,0.073015]
[1730732505858,0.003,68517.0,68516.0,0.433815]
[1730732506050,0.002,68517.0,68516.0,0.433815]
[1730732506952,0.002,68517.0,68516.0,0.871655]
[1730732507354,0.073003,68528.0,68516.0,0.871655]
[1730732507652,0.073003,68528.0,68524.0,0.3608]
[1730732508262,0.02054454,68532.0,68524.0,0.3608]
[1730732508461,0.073001,68530.0,68525.0,0.073005]
[1730732509260,0.0355,68535.0,68524.0,0.3608]
[1730732509261,0.02015278,68535.0,68528.0,0.073002]
[1730732509657,0.07519017,68531.0,68524.0,0.433806]
[1730732509849,0.073,68530.0,68524.0,0.3608]
[1730732510165,0.00219017,68531.0,68521.0,0.3608]
[1730732510166,0.073006,68526.0,68521.0,0.3608]
[1730732510455,0.073,68530.0,68521.0,0.3608]
[1730732510650,0.073006,68525.0,68521.0,0.3608]
[1730732510851,0.3608,68527.0,68521.0,0.3608]
[1730732511061,0.073009,68522.0,68521.0,0.3608]
[1730732511261,0.073006,68525.0,68521.0,0.3608]
[1730732511557,0.00219017,68531.0,68521.0,0.3608]
[1730732511558,0.073008,68523.0,68521.0,0.3608]
[1730732511955,0.073004,68527.0,68521.0,0.3608]
[1730732512152,0.073005,68526.0,68521.0,0.3608]
[1730732512456,0.073005,68526.0,68521.0,0.3618]
[1730732512961,0.073005,68526.0,68521.0,0.3628]
[1730732513257,0.073005,68526.0,68521.0,0.435809]
[1730732513465,0.073005,68526.0,68521.0,0.434809]
[1730732513658,0.00219017,68531.0,68523.0,0.073007]
[1730732513850,0.00219017,68531.0,68521.0,0.3618]
[1730732514050,0.073006,68526.0,68521.0,0.3628]
[1730732514251,0.073006,68526.0,68522.0,0.073009]
[1730732514557,0.36299017,68531.0,68523.0,0.073008]
[1730732514757,0.073006,68525.0,68521.0,0.3618]
[1730732514951,0.073003,68528.0,68522.0,0.073009]
[1730732515149,0.073004,68527.0,68522.0,0.073009]
[1730732515351,0.073004,68527.0,68521.0,0.3628]
[1730732515352,0.00219017,68531.0,68521.0,0.3628]
[1730732515550,0.00219017,68531.0,68523.0,0.001]
[1730732515551,0.073003,68528.0,68523.0,0.001]
[1730732515958,0.00219017,68531.0,68527.0,0.3608]
[1730732516461,0.073001,68530.0,68527.0,0.3608]
[1730732516668,0.00219017,68531.0,68528.0,0.073002]
[1730732516960,0.073003,68528.0,68527.0,0.3608]
[1730732517368,0.073003,68528.0,68527.0,0.3618]
[1730732517574,0.073003,68528.0,68527.0,0.3628]
[1730732517953,0.00219017,68531.0,68527.0,0.3628]
[1730732518160,0.3608,68543.0,68527.0,0.3628]
[1730732518161,1.26836333,68551.0,68530.0,0.3608]
[1730732518359,0.072988,68542.0,68541.0,0.3608]
[1730732520256,0.072988,68542.0,68541.0,0.3618]
[1730732520457,0.09352577,68545.0,68542.0,0.072987]
[1730732520671,0.3608,68550.0,68541.0,0.3628]
[1730732520856,0.072984,68545.0,68541.0,0.3628]
[1730732521058,0.072984,68545.0,68541.0,0.002]
[1730732521059,0.072988,68542.0,68541.0,0.002]
[1730732521258,0.433788,68542.0,68541.0,0.002]
[1730732521465,0.072988,68542.0,68541.0,0.002]
[1730732521670,0.433788,68542.0,68541.0,0.002]
[1730732521868,0.09326597,68542.0,68541.0,0.002]
[1730732522378,0.072988,68542.0,68541.0,0.001]
[1730732523266,0.072988,68542.0,68541.0,0.002]
[1730732524366,0.072988,68542.0,68541.0,0.001]
[1730732524559,0.072988,68542.0,68541.0,0.002]
[1730732525055,0.072988,68542.0,68541.0,0.001]
[1730732525261,0.072988,68542.0,68541.0,0.002]
[1730732525570,0.02037071,68546.0,68541.0,0.001]
[1730732525773,0.90026333,68552.0,68543.0,0.3608]
[1730732525961,0.05539873,68551.0,68543.0,0.3608]
[1730732526266,0.90026333,68552.0,68546.0,0.072983]
[1730732526267,0.76,68552.0,68546.0,0.072983]
[1730732526455,0.76,68552.0,68545.0,0.072984]
[1730732526969,0.76,68552.0,68543.0,0.3608]
[1730732526970,0.14026333,68550.0,68543.0,0.3608]
[1730732527273,0.072988,68542.0,68541.0,0.001]
[1730732527980,0.072985,68545.0,68537.0,0.3608]
[1730732528270,0.072985,68545.0,68540.0,0.072989]
[1730732528773,0.3608,68554.0,68543.0,0.3608]
[1730732528963,0.072977,68553.0,68547.0,0.072982]
[1730732529360,0.38161221,68554.0,68545.0,0.072984]
[1730732529573,0.02081221,68554.0,68544.0,0.0352]
[1730732529770,0.01018942,68555.0,68553.0,0.072975]
[1730732529964,0.01018942,68555.0,68545.0,0.072984]
[1730732530170,0.01018942,68555.0,68554.0,0.433775]
[1730732531172,0.01018942,68555.0,68554.0,1.036735]
[1730732531173,0.008,68555.0,68554.0,1.036735]
[1730732531477,0.008,68555.0,68554.0,0.52616]
[1730732531771,0.080974,68555.0,68554.0,0.52616]
[1730732531960,0.080974,68555.0,68544.0,0.0352]
[1730732531961,0.008,68555.0,68544.0,0.0352]
[1730732532164,0.008,68555.0,68543.0,0.3608]
[1730732532165,0.072985,68544.0,68543.0,0.3608]
[1730732532770,0.14026333,68545.0,68543.0,0.3608]
[1730732532972,0.072985,68544.0,68543.0,0.3608]
[1730732533170,0.14026333,68550.0,68544.0,0.072985]
[1730732533367,0.07298,68549.0,68545.0,0.072984]
[1730732533573,0.14026333,68550.0,68543.0,0.3608]
[1730732533872,0.072984,68546.0,68543.0,0.3638]
[1730732534475,0.072985,68544.0,68543.0,0.3638]
[1730732535071,0.072985,68544.0,68543.0,0.3698]
[1730732535482,0.072985,68544.0,68543.0,0.3668]
[1730732535775,0.072985,68544.0,68543.0,0.3618]
[1730732536373,0.072985,68544.0,68543.0,0.3628]
[1730732536577,0.072981,68549.0,68544.0,0.072985]
[1730732536762,0.14026333,68551.0,68544.0,0.072985]
[1730732536960,0.072981,68548.0,68544.0,0.072985]
[1730732537165,0.072981,68548.0,68543.0,0.3628]
[1730732537166,0.14026333,68546.0,68543.0,0.002]
[1730732537372,0.072985,68544.0,68543.0,0.002]
[1730732537765,0.072985,68544.0,68543.0,0.00052174]
[1730732537966,0.073002,68529.0,68525.0,0.24055382]
[1730732538168,0.21326633,68528.0,68525.0,0.00218882]
[1730732538376,0.14026333,68533.0,68525.0,0.07519382]
[1730732538676,0.073001,68530.0,68525.0,0.07519382]
[1730732538877,0.14026333,68533.0,68525.0,0.00218882]
[1730732539186,0.073005,68526.0,68525.0,0.00218882]
[1730732539371,0.14026333,68527.0,68520.0,0.07301]
[1730732539673,0.0356,68532.0,68518.0,0.3608]
[1730732539880,0.14026333,68522.0,68518.0,0.3608]
[1730732540100,0.21327333,68522.0,68518.0,0.3608]
[1730732540976,0.073012,68519.0,68518.0,0.3608]
[1730732541276,0.14026333,68522.0,68520.0,0.073011]
[1730732541575,0.073004,68527.0,68525.0,0.007]
[1730732541774,0.14026333,68528.0,68525.0,0.007]
[1730732541775,0.073005,68526.0,68525.0,0.007]
[1730732542574,0.07301,68522.0,68518.0,0.3788]
[1730732542776,0.07301,68521.0,68518.0,0.3788]
[1730732543075,0.0349,68527.0,68518.0,0.3788]
[1730732543276,0.0349,68527.0,68525.0,0.001]
[1730732543482,0.073005,68526.0,68525.0,0.001]
[1730732543681,0.0349,68527.0,68525.0,0.001]
[1730732544071,0.073005,68526.0,68520.0,0.07301]
[1730732544468,0.073006,68525.0,68520.0,0.07301]
[1730732544674,0.073007,68524.0,68520.0,0.07301]
[1730732545182,0.073012,68519.0,68518.0,0.018]
[1730732545370,0.073022,68510.0,68507.0,0.00076]
[1730732545567,0.073022,68510.0,68503.0,0.0726547]
[1730732545568,0.433822,68510.0,68503.0,0.0726547]
[1730732545879,0.433822,68510.0,68485.0,0.0068]
[1730732545880,0.073028,68505.0,68485.0,0.0068]
[1730732546076,0.14026333,68486.0,68479.0,0.00219029]
[1730732546275,0.21331733,68480.0,68479.0,0.00219029]
[1730732546471,0.073051,68483.0,68479.0,0.00219029]
[1730732546679,0.073052,68482.0,68479.0,0.00219029]
[1730732546875,0.073053,68481.0,68479.0,0.00219029]
[1730732547381,0.21331733,68480.0,68479.0,0.01619029]
[1730732547679,0.21331733,68480.0,68479.0,0.014]
[1730732548885,0.21431733,68480.0,68479.0,0.024]
[1730732549383,0.073054,68480.0,68479.0,0.014]
[1730732549584,0.078054,68480.0,68479.0,0.014]
[1730732550283,0.078054,68480.0,68468.0,0.3608]
[1730732550480,0.073063,68472.0,68468.0,0.3608]
[1730732550681,0.3608,68479.0,68468.0,0.3608]
[1730732551080,0.073061,68473.0,68468.0,0.3608]
[1730732551778,0.005,68480.0,68468.0,0.3608]
[1730732551987,0.005,68480.0,68475.0,0.3608]
[1730732552183,0.073056,68479.0,68475.0,0.3608]
[1730732552782,0.005,68480.0,68475.0,0.433859]
[1730732553076,0.005,68480.0,68475.0,0.3608]
[1730732553276,0.073058,68476.0,68475.0,0.3608]
[1730732555780,0.074058,68476.0,68475.0,0.3608]
[1730732556975,0.074058,68476.0,68475.0,0.001]
[1730732557174,0.30551972,68476.0,68475.0,0.001]
[1730732557381,0.30551972,68476.0,68460.0,0.3608]
[1730732557382,0.67058172,68476.0,68460.0,0.3608]
[1730732557604,0.21055762,68461.0,68443.0,0.0068]
[1730732557887,0.28362062,68471.0,68432.0,0.3608]
[1730732557888,0.28364862,68445.0,68438.0,0.3608]
[1730732558089,0.28364862,68445.0,68439.0,0.073096]
[1730732558291,0.3608,68450.0,68438.0,0.3608]
[1730732558292,0.073088,68449.0,68438.0,0.3608]
[1730732558487,0.3608,68450.0,68438.0,0.3608]
[1730732558488,0.073089,68447.0,68443.0,0.073092]
[1730732558983,0.3608,68450.0,68438.0,0.3608]
[1730732558984,0.3608,68450.0,68449.0,0.073087]
[1730732559185,0.3608,68453.0,68448.0,0.073087]
[1730732559392,0.3608,68453.0,68438.0,0.3608]
[1730732559393,0.073085,68451.0,68444.0,0.07528214]
[1730732559697,0.073089,68447.0,68444.0,0.00219114]
[1730732559882,0.21055762,68451.0,68444.0,0.00219114]
[1730732560077,0.07309,68446.0,68444.0,0.01119114]
[1730732560288,0.001,68447.0,68444.0,0.01119114]
[1730732560590,0.001,68447.0,68444.0,0.08428314]
[1730732560794,0.21055762,68451.0,68448.0,0.073087]
[1730732560994,0.001,68449.0,68445.0,0.073091]
[1730732561294,0.001,68449.0,68444.0,0.01319114]
[1730732561590,0.001,68449.0,68447.0,0.073089]
[1730732561779,0.3608,68453.0,68447.0,0.073089]
[1730732561982,0.45435181,68453.0,68447.0,0.073089]
[1730732562183,0.3608,68453.0,68444.0,0.01019114]
[1730732562483,0.3608,68453.0,68444.0,0.00919114]
[1730732562882,0.3608,68453.0,68444.0,0.00519114]
[1730732563093,0.3608,68453.0,68448.0,0.073087]
[1730732564193,0.0206421,68457.0,68445.0,0.3608]
[1730732564397,0.28363462,68458.0,68446.0,0.07309]
[1730732564594,0.28363462,68458.0,68445.0,0.3608]
[1730732564595,0.073078,68457.0,68452.0,0.073084]
[1730732564784,0.073079,68456.0,68450.0,0.073085]
[1730732564986,0.001,68453.0,68450.0,0.073085]
[1730732565394,0.001,68453.0,68445.0,0.3608]
[1730732565699,0.001,68453.0,68451.0,0.073084]
[1730732565899,0.001,68453.0,68445.0,0.3608]
[1730732565900,0.008,68457.0,68452.0,0.001]